[Event "Titled Tuesday Blitz July 26 Early 2022"]
[White "Rostomyan, Mikayel"]
[Black "Nathan, Nitish"]
[WhiteFideId "13313754"]
[BlackFideId "30927870"]
[WhiteElo "1201"]
[BlackElo "2291"]
[Result "1/2-1/2"]
[Round "03"]
[TimeControl "180+1"]
[Date "2022.07.27"]
[WhiteClock "0:00:08"]
[BlackClock "0:00:06"]

1. Nf3 {[%clk 0:02:54]}  Nf6 {[%clk 0:02:58]} 2. e3 {[%clk 0:02:53]}  d5 {[%clk 0:02:58]} 3. c4 {[%clk 0:02:53]}  c6 {[%clk 0:02:56]} 4. Nc3 {[%clk 0:02:53]}  e6 {[%clk 0:02:54]} 5. b3 {[%clk 0:02:52]}  Bd6 {[%clk 0:02:54]} 6. Bb2 {[%clk 0:02:51]}  Nbd7 {[%clk 0:02:54]} 7. d4 {[%clk 0:02:52]}  O-O {[%clk 0:02:53]} 8. Be2 {[%clk 0:02:52]}  b6 {[%clk 0:02:53]} 9. O-O {[%clk 0:02:52]}  Bb7 {[%clk 0:02:54]} 10. Bd3 {[%clk 0:02:51]}  c5 {[%clk 0:02:53]} 11. cxd5 {[%clk 0:02:48]}  exd5 {[%clk 0:02:52]} 12. Rc1 {[%clk 0:02:41]}  cxd4 {[%clk 0:02:49]} 13. Nxd4 {[%clk 0:02:41]}  Ne5 {[%clk 0:02:46]} 14. Be2 {[%clk 0:02:41]}  Qb8 {[%clk 0:02:34]} 15. Ncb5 {[%clk 0:02:36]}  Bc5 {[%clk 0:02:32]} 16. b4 {[%clk 0:02:13]}  Bxb4 {[%clk 0:02:26]} 17. Nc7 {[%clk 0:02:11]}  Bd6 {[%clk 0:02:19]} 18. Nxa8 {[%clk 0:02:10]}  Bxa8 {[%clk 0:02:19]} 19. Nf5 {[%clk 0:02:10]}  Bc5 {[%clk 0:02:13]} 20. Qb3 {[%clk 0:01:57]}  Neg4 {[%clk 0:02:05]} 21. g3 {[%clk 0:01:46]}  Qb7 {[%clk 0:01:55]} 22. Bd4 {[%clk 0:01:26]}  Qd7 {[%clk 0:01:45]} 23. Bxg4 {[%clk 0:00:54]}  Nxg4 {[%clk 0:01:41]} 24. Bxc5 {[%clk 0:00:46]}  bxc5 {[%clk 0:01:29]} 25. Nh4 {[%clk 0:00:44]}  c4 {[%clk 0:01:21]} 26. Qc3 {[%clk 0:00:41]}  Qc6 {[%clk 0:01:16]} 27. Qd4 {[%clk 0:00:39]}  Nf6 {[%clk 0:01:13]} 28. Nf5 {[%clk 0:00:38]}  Qe6 {[%clk 0:01:12]} 29. Qf4 {[%clk 0:00:35]}  Ne4 {[%clk 0:00:57]} 30. Rfd1 {[%clk 0:00:29]}  Bb7 {[%clk 0:00:53]} 31. Qg4 {[%clk 0:00:25]}  Qf6 {[%clk 0:00:45]} 32. Qf4 {[%clk 0:00:25]}  g5 {[%clk 0:00:41]} 33. Qf3 {[%clk 0:00:21]}  Bc8 {[%clk 0:00:37]} 34. Nd4 {[%clk 0:00:21]}  Qh6 {[%clk 0:00:31]} 35. Qg2 {[%clk 0:00:20]}  Bh3 {[%clk 0:00:30]} 36. Qf3 {[%clk 0:00:20]}  f5 {[%clk 0:00:30]} 37. Nb5 {[%clk 0:00:18]}  Bg4 {[%clk 0:00:29]} 38. Qg2 {[%clk 0:00:17]}  Bxd1 {[%clk 0:00:29]} 39. Rxd1 {[%clk 0:00:18]}  Qc6 {[%clk 0:00:26]} 40. Nd4 {[%clk 0:00:18]}  Qd6 {[%clk 0:00:26]} 41. Qh3 {[%clk 0:00:17]}  Qe5 {[%clk 0:00:25]} 42. Qh6 {[%clk 0:00:17]}  Nc3 {[%clk 0:00:24]} 43. Qxg5+ {[%clk 0:00:16]}  Kh8 {[%clk 0:00:23]} 44. Rc1 {[%clk 0:00:15]}  Ne4 {[%clk 0:00:23]} 45. Qh6 {[%clk 0:00:14]}  Rb8 {[%clk 0:00:21]} 46. Nf3 {[%clk 0:00:13]}  Qb2 {[%clk 0:00:20]} 47. Rf1 {[%clk 0:00:11]}  Qf6 {[%clk 0:00:20]} 48. Qf4 {[%clk 0:00:11]}  Rc8 {[%clk 0:00:20]} 49. Nd4 {[%clk 0:00:11]}  Nd6 {[%clk 0:00:19]} 50. g4 {[%clk 0:00:10]}  Rg8 {[%clk 0:00:17]} 51. h3 {[%clk 0:00:10]}  h5 {[%clk 0:00:17]} 52. f3 {[%clk 0:00:09]}  hxg4 {[%clk 0:00:16]} 53. fxg4 {[%clk 0:00:10]}  Ne4 {[%clk 0:00:14]} 54. Kh2 {[%clk 0:00:09]}  Qh4 {[%clk 0:00:13]} 55. Qe5+ {[%clk 0:00:08]}  Rg7 {[%clk 0:00:11]} 56. Rxf5 {[%clk 0:00:09]}  Ng5 {[%clk 0:00:07]} 57. Rf8+ {[%clk 0:00:07]}  Kh7 {[%clk 0:00:07]} 58. Qf5+ {[%clk 0:00:07]}  Rg6 {[%clk 0:00:06]} 59. Rf7+ {[%clk 0:00:04]}  Nxf7 {[%clk 0:00:05]} 60. Qxf7+ {[%clk 0:00:05]}  Rg7 {[%clk 0:00:04]} 61. Qf5+ {[%clk 0:00:06]}  Rg6 {[%clk 0:00:05]} 62. Nf3 {[%clk 0:00:07]}  Qf2+ {[%clk 0:00:04]} 63. Kh1 {[%clk 0:00:07]}  Qf1+ {[%clk 0:00:05]} 64. Kh2 {[%clk 0:00:07]}  Qf2+ {[%clk 0:00:05]} 65. Kh1 {[%clk 0:00:08]}  Qf1+ {[%clk 0:00:06]} 66. Kh2 {[%clk 0:00:08]}  Qf2+ {[%clk 0:00:06]} 1/2-1/2


[Site "https://www.chess.com"]

[Event "Titled Tuesday Blitz July 26 Early 2022"]
[White "Rustemov, Alexander"]
[Black "Castaneda, Jhon David"]
[WhiteFideId "4119002"]
[BlackFideId "4405048"]
[WhiteElo "2819"]
[BlackElo "2152"]
[Result "0-1"]
[Round "03"]
[TimeControl "180+1"]
[Date "2022.07.26"]
[WhiteClock "0:00:04"]
[BlackClock "0:00:08"]

1. d4 {[%clk 0:03:00]}  Nf6 {[%clk 0:02:59]} 2. c4 {[%clk 0:03:01]}  e6 {[%clk 0:02:59]} 3. Nf3 {[%clk 0:03:01]}  d5 {[%clk 0:02:58]} 4. Nc3 {[%clk 0:03:01]}  Bb4 {[%clk 0:02:57]} 5. Bg5 {[%clk 0:03:01]}  Nbd7 {[%clk 0:02:50]} 6. e3 {[%clk 0:03:00]}  h6 {[%clk 0:02:46]} 7. Bxf6 {[%clk 0:02:58]}  Qxf6 {[%clk 0:02:41]} 8. Qb3 {[%clk 0:02:56]}  Bxc3+ {[%clk 0:02:35]} 9. bxc3 {[%clk 0:02:56]}  dxc4 {[%clk 0:02:32]} 10. Bxc4 {[%clk 0:02:55]}  O-O {[%clk 0:02:33]} 11. O-O {[%clk 0:02:54]}  e5 {[%clk 0:02:30]} 12. Rfd1 {[%clk 0:02:45]}  exd4 {[%clk 0:02:14]} 13. cxd4 {[%clk 0:02:45]}  Nb6 {[%clk 0:02:12]} 14. Ne5 {[%clk 0:02:37]}  c6 {[%clk 0:02:05]} 15. Be2 {[%clk 0:02:23]}  Be6 {[%clk 0:02:03]} 16. Qb4 {[%clk 0:02:17]}  Rfe8 {[%clk 0:01:43]} 17. a4 {[%clk 0:02:15]}  Qe7 {[%clk 0:01:43]} 18. Rab1 {[%clk 0:02:12]}  Nd5 {[%clk 0:01:33]} 19. Qxe7 {[%clk 0:01:57]}  Rxe7 {[%clk 0:01:33]} 20. Rdc1 {[%clk 0:01:58]}  Bf5 {[%clk 0:01:19]} 21. Rb2 {[%clk 0:01:55]}  f6 {[%clk 0:01:16]} 22. Nc4 {[%clk 0:01:42]}  Rd8 {[%clk 0:01:11]} 23. Bf1 {[%clk 0:01:33]}  Kf8 {[%clk 0:01:07]} 24. a5 {[%clk 0:01:33]}  a6 {[%clk 0:01:05]} 25. Nd2 {[%clk 0:01:20]}  g5 {[%clk 0:00:45]} 26. Nb3 {[%clk 0:01:20]}  Bc8 {[%clk 0:00:44]} 27. Nc5 {[%clk 0:01:20]}  f5 {[%clk 0:00:33]} 28. Bc4 {[%clk 0:01:11]}  Nf6 {[%clk 0:00:31]} 29. Re2 {[%clk 0:01:01]}  f4 {[%clk 0:00:30]} 30. Rce1 {[%clk 0:00:50]}  Bg4 {[%clk 0:00:27]} 31. f3 {[%clk 0:00:50]}  Bc8 {[%clk 0:00:27]} 32. exf4 {[%clk 0:00:43]}  Rxe2 {[%clk 0:00:26]} 33. Rxe2 {[%clk 0:00:43]}  gxf4 {[%clk 0:00:27]} 34. Be6 {[%clk 0:00:31]}  Nd5 {[%clk 0:00:21]} 35. Bxc8 {[%clk 0:00:29]}  Rxc8 {[%clk 0:00:22]} 36. Nxb7 {[%clk 0:00:29]}  Rb8 {[%clk 0:00:22]} 37. Nc5 {[%clk 0:00:29]}  Rb1+ {[%clk 0:00:21]} 38. Kf2 {[%clk 0:00:29]}  Ne3 {[%clk 0:00:21]} 39. Rd2 {[%clk 0:00:20]}  Rf1+ {[%clk 0:00:17]} 40. Ke2 {[%clk 0:00:20]}  Ra1 {[%clk 0:00:16]} 41. Kd3 {[%clk 0:00:20]}  Rxa5 {[%clk 0:00:15]} 42. Ne6+ {[%clk 0:00:20]}  Ke7 {[%clk 0:00:15]} 43. Nxf4 {[%clk 0:00:21]}  Nf5 {[%clk 0:00:13]} 44. g4 {[%clk 0:00:18]}  Ra3+ {[%clk 0:00:12]} 45. Ke2 {[%clk 0:00:19]}  Nd6 {[%clk 0:00:10]} 46. Kf2 {[%clk 0:00:16]}  Nb5 {[%clk 0:00:09]} 47. d5 {[%clk 0:00:16]}  c5 {[%clk 0:00:09]} 48. Re2+ {[%clk 0:00:14]}  Kd7 {[%clk 0:00:08]} 49. Re6 {[%clk 0:00:11]}  Nd4 {[%clk 0:00:07]} 50. Rxh6 {[%clk 0:00:10]}  Rxf3+ {[%clk 0:00:07]} 51. Kg2 {[%clk 0:00:10]}  Rxf4 {[%clk 0:00:08]} 52. Kg3 {[%clk 0:00:11]}  Re4 {[%clk 0:00:08]} 53. Rxa6 {[%clk 0:00:11]}  c4 {[%clk 0:00:07]} 54. Ra4 {[%clk 0:00:08]}  Nb3 {[%clk 0:00:07]} 55. h4 {[%clk 0:00:05]}  Nc5 {[%clk 0:00:05]} 56. h5 {[%clk 0:00:04]}  Nxa4 {[%clk 0:00:05]} 57. h6 {[%clk 0:00:04]}  Re8 {[%clk 0:00:04]} 58. g5 {[%clk 0:00:04]}  c3 {[%clk 0:00:04]} 59. g6 {[%clk 0:00:04]}  c2 {[%clk 0:00:05]} 60. h7 {[%clk 0:00:04]}  c1=Q {[%clk 0:00:05]} 61. g7 {[%clk 0:00:05]}  Qd1 {[%clk 0:00:06]} 62. g8=Q {[%clk 0:00:04]}  Qg1+ {[%clk 0:00:06]} 63. Kf4 {[%clk 0:00:03]}  Rxg8 {[%clk 0:00:06]} 64. hxg8=Q {[%clk 0:00:04]}  Qxg8 {[%clk 0:00:06]} 65. Ke5 {[%clk 0:00:05]}  Qe8+ {[%clk 0:00:07]} 66. Kd4 {[%clk 0:00:04]}  Qe7 {[%clk 0:00:08]} 0-1


[Site "https://www.chess.com"]

[Event "Titled Tuesday Blitz July 26 Early 2022"]
[White "Rychagov, Andrey"]
[Black "Shimanov, Aleksandr"]
[WhiteFideId "4119932"]
[BlackFideId "4198603"]
[WhiteElo "2481"]
[BlackElo "2605"]
[Result "0-1"]
[Round "03"]
[TimeControl "180+1"]
[Date "2022.07.26"]
[WhiteClock "0:00:01"]
[BlackClock "0:00:15"]

1. d4 {[%clk 0:03:00]}  d5 {[%clk 0:02:53]} 2. c4 {[%clk 0:03:00]}  c6 {[%clk 0:02:54]} 3. cxd5 {[%clk 0:02:59]}  cxd5 {[%clk 0:02:53]} 4. Bf4 {[%clk 0:02:59]}  Nc6 {[%clk 0:02:53]} 5. e3 {[%clk 0:02:59]}  Nf6 {[%clk 0:02:41]} 6. Nc3 {[%clk 0:02:59]}  a6 {[%clk 0:02:30]} 7. Bd3 {[%clk 0:02:55]}  Bg4 {[%clk 0:02:24]} 8. Nge2 {[%clk 0:02:53]}  e6 {[%clk 0:02:22]} 9. O-O {[%clk 0:02:52]}  Be7 {[%clk 0:02:21]} 10. Rc1 {[%clk 0:02:50]}  O-O {[%clk 0:02:21]} 11. f3 {[%clk 0:02:44]}  Bh5 {[%clk 0:02:20]} 12. Na4 {[%clk 0:02:44]}  Rc8 {[%clk 0:02:17]} 13. Bg3 {[%clk 0:02:32]}  Bg6 {[%clk 0:02:16]} 14. Nf4 {[%clk 0:02:32]}  Nd7 {[%clk 0:02:17]} 15. Bxg6 {[%clk 0:02:26]}  hxg6 {[%clk 0:02:18]} 16. Nd3 {[%clk 0:02:26]}  Qa5 {[%clk 0:02:05]} 17. a3 {[%clk 0:02:15]}  Qb5 {[%clk 0:01:57]} 18. Nc3 {[%clk 0:02:09]}  Qb6 {[%clk 0:01:54]} 19. Na4 {[%clk 0:02:08]}  Qa7 {[%clk 0:01:52]} 20. b4 {[%clk 0:01:42]}  Nb6 {[%clk 0:01:40]} 21. Nxb6 {[%clk 0:01:39]}  Qxb6 {[%clk 0:01:41]} 22. Nc5 {[%clk 0:01:38]}  Rfd8 {[%clk 0:01:40]} 23. Qd3 {[%clk 0:01:34]}  a5 {[%clk 0:01:30]} 24. b5 {[%clk 0:01:27]}  Na7 {[%clk 0:01:29]} 25. a4 {[%clk 0:01:15]}  Bxc5 {[%clk 0:01:29]} 26. dxc5 {[%clk 0:01:15]}  Rxc5 {[%clk 0:01:30]} 27. Qd4 {[%clk 0:01:15]}  Rdc8 {[%clk 0:01:28]} 28. Rc3 {[%clk 0:00:40]}  f6 {[%clk 0:01:19]} 29. f4 {[%clk 0:00:13]}  f5 {[%clk 0:00:50]} 30. Rfc1 {[%clk 0:00:11]}  Rxc3 {[%clk 0:00:49]} 31. Qxb6 {[%clk 0:00:04]}  Rxc1+ {[%clk 0:00:49]} 32. Be1 {[%clk 0:00:04]}  Nxb5 {[%clk 0:00:25]} 33. Qxb5 {[%clk 0:00:03]}  Rxe1+ {[%clk 0:00:24]} 34. Kf2 {[%clk 0:00:03]}  Ra1 {[%clk 0:00:22]} 35. Qxb7 {[%clk 0:00:03]}  Rc2+ {[%clk 0:00:20]} 36. Kg3 {[%clk 0:00:03]}  Raa2 {[%clk 0:00:20]} 37. Qb8+ {[%clk 0:00:03]}  Kh7 {[%clk 0:00:20]} 38. Qd8 {[%clk 0:00:01]}  Rxg2+ {[%clk 0:00:20]} 39. Kh3 {[%clk 0:00:01]}  Rxh2+ {[%clk 0:00:20]} 40. Kg3 {[%clk 0:00:01]}  Rag2+ {[%clk 0:00:20]} 41. Kf3 {[%clk 0:00:01]}  Rg4 {[%clk 0:00:15]} 42. Qe7 {[%clk 0:00:01]}  Rh3+ {[%clk 0:00:15]} 43. Ke2 {[%clk 0:00:01]}  Rgg3 {[%clk 0:00:15]} 0-1


[Site "https://www.chess.com"]

[Event "Titled Tuesday Blitz July 26 Early 2022"]
[White "Sadubayev, Airat"]
[Black "Le, Tuan Minh"]
[WhiteFideId "13713264"]
[BlackFideId "12401153"]
[WhiteElo "2163"]
[BlackElo "2530"]
[Result "0-1"]
[Round "03"]
[TimeControl "180+1"]
[Date "2022.07.26"]
[WhiteClock "0:00:03"]
[BlackClock "0:00:24"]

1. d4 {[%clk 0:02:59]}  d5 {[%clk 0:02:58]} 2. c4 {[%clk 0:03:00]}  c6 {[%clk 0:02:54]} 3. Nf3 {[%clk 0:03:00]}  Nf6 {[%clk 0:02:54]} 4. e3 {[%clk 0:02:58]}  Bf5 {[%clk 0:02:53]} 5. Nc3 {[%clk 0:02:54]}  e6 {[%clk 0:02:54]} 6. Bd3 {[%clk 0:02:54]}  Bg6 {[%clk 0:02:53]} 7. O-O {[%clk 0:02:54]}  Nbd7 {[%clk 0:02:52]} 8. b3 {[%clk 0:02:53]}  Bd6 {[%clk 0:02:51]} 9. Bb2 {[%clk 0:02:53]}  Ne4 {[%clk 0:02:51]} 10. Re1 {[%clk 0:02:46]}  O-O {[%clk 0:02:48]} 11. Ne2 {[%clk 0:02:40]}  Qb8 {[%clk 0:02:38]} 12. h3 {[%clk 0:02:35]}  f5 {[%clk 0:02:31]} 13. cxd5 {[%clk 0:02:31]}  exd5 {[%clk 0:02:30]} 14. a3 {[%clk 0:02:13]}  Bh5 {[%clk 0:02:26]} 15. Nd2 {[%clk 0:02:08]}  Bh2+ {[%clk 0:02:02]} 16. Kf1 {[%clk 0:02:03]}  f4 {[%clk 0:01:34]} 17. exf4 {[%clk 0:01:56]}  Rxf4 {[%clk 0:01:12]} 18. Nxe4 {[%clk 0:01:38]}  dxe4 {[%clk 0:01:12]} 19. Bc4+ {[%clk 0:01:38]}  Kh8 {[%clk 0:01:13]} 20. Qd2 {[%clk 0:01:08]}  Rf8 {[%clk 0:00:59]} 21. Qe3 {[%clk 0:00:51]}  Nf6 {[%clk 0:00:52]} 22. Rad1 {[%clk 0:00:34]}  Nd5 {[%clk 0:00:47]} 23. Bxd5 {[%clk 0:00:34]}  cxd5 {[%clk 0:00:47]} 24. Qg5 {[%clk 0:00:32]}  Bxe2+ {[%clk 0:00:33]} 25. Rxe2 {[%clk 0:00:33]}  Qd6 {[%clk 0:00:34]} 26. g3 {[%clk 0:00:21]}  Bxg3 {[%clk 0:00:34]} 27. Kg2 {[%clk 0:00:19]}  Bf4 {[%clk 0:00:34]} 28. Qg4 {[%clk 0:00:17]}  Rf6 {[%clk 0:00:34]} 29. Kh1 {[%clk 0:00:17]}  Rg6 {[%clk 0:00:35]} 30. Qh5 {[%clk 0:00:16]}  Rf8 {[%clk 0:00:35]} 31. Rg1 {[%clk 0:00:17]}  Rxg1+ {[%clk 0:00:25]} 32. Kxg1 {[%clk 0:00:18]}  g6 {[%clk 0:00:25]} 33. Qg4 {[%clk 0:00:17]}  Rf5 {[%clk 0:00:26]} 34. Kf1 {[%clk 0:00:15]}  Qa6 {[%clk 0:00:24]} 35. Ke1 {[%clk 0:00:08]}  Qd3 {[%clk 0:00:24]} 36. Qh4 {[%clk 0:00:03]}  Qb1+ {[%clk 0:00:24]} 0-1


[Site "https://www.chess.com"]

[Event "Titled Tuesday Blitz July 26 Early 2022"]
[White "Sarana, Alexey"]
[Black "Agasarov, Benik"]
[WhiteFideId "24133795"]
[BlackFideId "13314823"]
[WhiteElo "2666"]
[BlackElo "2715"]
[Result "1-0"]
[Round "03"]
[TimeControl "180+1"]
[Date "2022.07.26"]
[WhiteClock "0:02:13"]
[BlackClock "0:01:29"]

1. c4 {[%clk 0:03:00]}  e5 {[%clk 0:02:59]} 2. g3 {[%clk 0:02:58]}  Nf6 {[%clk 0:02:59]} 3. Bg2 {[%clk 0:02:57]}  d5 {[%clk 0:02:58]} 4. cxd5 {[%clk 0:02:58]}  Nxd5 {[%clk 0:02:59]} 5. Nc3 {[%clk 0:02:58]}  Nb6 {[%clk 0:02:59]} 6. d3 {[%clk 0:02:58]}  Nc6 {[%clk 0:03:00]} 7. Be3 {[%clk 0:02:53]}  Be6 {[%clk 0:02:57]} 8. Nf3 {[%clk 0:02:50]}  Be7 {[%clk 0:02:57]} 9. O-O {[%clk 0:02:49]}  O-O {[%clk 0:02:57]} 10. Rc1 {[%clk 0:02:50]}  Nd5 {[%clk 0:02:55]} 11. Bd2 {[%clk 0:02:49]}  f6 {[%clk 0:02:52]} 12. Ne4 {[%clk 0:02:48]}  Qd7 {[%clk 0:02:39]} 13. Nc5 {[%clk 0:02:44]}  Bxc5 {[%clk 0:02:39]} 14. Rxc5 {[%clk 0:02:45]}  Rad8 {[%clk 0:02:39]} 15. a3 {[%clk 0:02:38]}  b6 {[%clk 0:02:36]} 16. Rc1 {[%clk 0:02:34]}  Nd4 {[%clk 0:02:34]} 17. b4 {[%clk 0:02:18]}  Bh3 {[%clk 0:02:20]} 18. Bxh3 {[%clk 0:02:16]}  Nxf3+ {[%clk 0:02:20]} 19. Kg2 {[%clk 0:02:16]}  Nf4+ {[%clk 0:01:29]} 20. Bxf4 {[%clk 0:02:13]} 1-0


[Site "https://www.chess.com"]

[Event "Titled Tuesday Blitz July 26 Early 2022"]
[White "Srihari L R"]
[Black "Yaniuk, Volodymyr"]
[WhiteFideId "46617116"]
[BlackFideId "14133083"]
[WhiteElo "2170"]
[BlackElo "2141"]
[Result "1/2-1/2"]
[Round "03"]
[TimeControl "180+1"]
[Date "2022.07.27"]
[WhiteClock "0:00:05"]
[BlackClock "0:00:14"]

1. d4 {[%clk 0:02:55]}  d5 {[%clk 0:02:59]} 2. c4 {[%clk 0:02:55]}  e6 {[%clk 0:02:59]} 3. Nf3 {[%clk 0:02:55]}  Nf6 {[%clk 0:03:00]} 4. g3 {[%clk 0:02:55]}  Be7 {[%clk 0:02:57]} 5. Bg2 {[%clk 0:02:55]}  O-O {[%clk 0:02:56]} 6. O-O {[%clk 0:02:55]}  dxc4 {[%clk 0:02:54]} 7. Qc2 {[%clk 0:02:54]}  b5 {[%clk 0:02:50]} 8. a4 {[%clk 0:02:37]}  Bb7 {[%clk 0:02:49]} 9. axb5 {[%clk 0:02:37]}  a6 {[%clk 0:02:50]} 10. Nc3 {[%clk 0:02:29]}  axb5 {[%clk 0:02:47]} 11. Rxa8 {[%clk 0:02:30]}  Bxa8 {[%clk 0:02:47]} 12. Nxb5 {[%clk 0:02:31]}  c5 {[%clk 0:02:45]} 13. Qxc4 {[%clk 0:02:28]}  cxd4 {[%clk 0:02:42]} 14. Nbxd4 {[%clk 0:02:26]}  Bd5 {[%clk 0:02:40]} 15. Qc2 {[%clk 0:02:25]}  Qb6 {[%clk 0:02:34]} 16. Be3 {[%clk 0:02:23]}  Qb7 {[%clk 0:02:34]} 17. Rc1 {[%clk 0:02:21]}  h6 {[%clk 0:02:32]} 18. Ne1 {[%clk 0:02:18]}  Bxg2 {[%clk 0:02:29]} 19. Nxg2 {[%clk 0:02:19]}  Nd5 {[%clk 0:02:29]} 20. Bd2 {[%clk 0:02:18]}  Na6 {[%clk 0:02:28]} 21. Ne3 {[%clk 0:02:14]}  Bf6 {[%clk 0:02:09]} 22. Nxd5 {[%clk 0:01:51]}  Qxd5 {[%clk 0:02:10]} 23. Nf3 {[%clk 0:01:47]}  Rb8 {[%clk 0:02:06]} 24. Bc3 {[%clk 0:01:40]}  Nb4 {[%clk 0:02:00]} 25. Qd1 {[%clk 0:00:45]}  Na2 {[%clk 0:01:57]} 26. Qxd5 {[%clk 0:00:44]}  exd5 {[%clk 0:01:57]} 27. Rc2 {[%clk 0:00:39]}  Rc8 {[%clk 0:01:51]} 28. Rd2 {[%clk 0:00:36]}  Bxc3 {[%clk 0:01:45]} 29. bxc3 {[%clk 0:00:36]}  Nxc3 {[%clk 0:01:44]} 30. Kg2 {[%clk 0:00:32]}  f6 {[%clk 0:01:37]} 31. e3 {[%clk 0:00:30]}  Kf7 {[%clk 0:01:36]} 32. Rc2 {[%clk 0:00:30]}  Rc7 {[%clk 0:01:34]} 33. Rd2 {[%clk 0:00:28]}  Ne4 {[%clk 0:01:22]} 34. Ra2 {[%clk 0:00:26]}  Rc1 {[%clk 0:01:11]} 35. Nd4 {[%clk 0:00:23]}  Rd1 {[%clk 0:01:08]} 36. Ra7+ {[%clk 0:00:22]}  Kg8 {[%clk 0:01:00]} 37. Ne6 {[%clk 0:00:16]}  Rd2 {[%clk 0:00:58]} 38. Rxg7+ {[%clk 0:00:16]}  Kh8 {[%clk 0:00:58]} 39. Rd7 {[%clk 0:00:16]}  Nxf2 {[%clk 0:00:48]} 40. Nf4 {[%clk 0:00:08]}  Ng4+ {[%clk 0:00:43]} 41. Kg1 {[%clk 0:00:06]}  Nxe3 {[%clk 0:00:38]} 42. Re7 {[%clk 0:00:06]}  d4 {[%clk 0:00:36]} 43. Rd7 {[%clk 0:00:04]}  Ng4 {[%clk 0:00:28]} 44. h3 {[%clk 0:00:04]}  Ne5 {[%clk 0:00:26]} 45. Rd6 {[%clk 0:00:03]}  Kg7 {[%clk 0:00:20]} 46. Nh5+ {[%clk 0:00:03]}  Kg6 {[%clk 0:00:20]} 47. Rxf6+ {[%clk 0:00:01]}  Kxh5 {[%clk 0:00:17]} 48. Rf5+ {[%clk 0:00:02]}  Kg6 {[%clk 0:00:17]} 49. Rxe5 {[%clk 0:00:02]}  h5 {[%clk 0:00:16]} 50. Rd5 {[%clk 0:00:02]}  Kh6 {[%clk 0:00:16]} 51. h4 {[%clk 0:00:02]}  Kg6 {[%clk 0:00:16]} 52. Kh1 {[%clk 0:00:03]}  Kh6 {[%clk 0:00:16]} 53. Kg1 {[%clk 0:00:03]}  Kg6 {[%clk 0:00:17]} 54. Kh1 {[%clk 0:00:04]}  d3 {[%clk 0:00:17]} 55. Kg1 {[%clk 0:00:04]}  Rd1+ {[%clk 0:00:17]} 56. Kg2 {[%clk 0:00:04]}  d2 {[%clk 0:00:15]} 57. Rd6+ {[%clk 0:00:04]}  Kf5 {[%clk 0:00:15]} 58. Rd4 {[%clk 0:00:01]}  Ke5 {[%clk 0:00:14]} 59. Rd8 {[%clk 0:00:02]}  Ke4 {[%clk 0:00:15]} 60. Re8+ {[%clk 0:00:02]}  Kd3 {[%clk 0:00:15]} 61. Rd8+ {[%clk 0:00:03]}  Kc2 {[%clk 0:00:14]} 62. Rc8+ {[%clk 0:00:03]}  Kd3 {[%clk 0:00:15]} 63. Rd8+ {[%clk 0:00:04]}  Kc3 {[%clk 0:00:15]} 64. Rc8+ {[%clk 0:00:04]}  Kd4 {[%clk 0:00:16]} 65. Rd8+ {[%clk 0:00:05]}  Kc5 {[%clk 0:00:15]} 66. Rc8+ {[%clk 0:00:05]}  Kd6 {[%clk 0:00:16]} 67. Rd8+ {[%clk 0:00:06]}  Ke7 {[%clk 0:00:16]} 68. Rd3 {[%clk 0:00:06]}  Ke6 {[%clk 0:00:16]} 69. Kh2 {[%clk 0:00:06]}  Kf5 {[%clk 0:00:16]} 70. Rd8 {[%clk 0:00:06]}  Kg4 {[%clk 0:00:15]} 71. Kg2 {[%clk 0:00:04]}  Kf5 {[%clk 0:00:14]} 72. Kh2 {[%clk 0:00:04]}  Ke4 {[%clk 0:00:14]} 73. Kg2 {[%clk 0:00:04]}  Ke3 {[%clk 0:00:14]} 74. Re8+ {[%clk 0:00:04]}  Kd3 {[%clk 0:00:14]} 75. Rd8+ {[%clk 0:00:05]} 1/2-1/2


[Site "https://www.chess.com"]

[Event "Titled Tuesday Blitz July 26 Early 2022"]
[White "Taboas Rodriguez, Daniel"]
[Black "Vakhlamov, Igor L."]
[WhiteFideId "2208466"]
[BlackFideId "24126748"]
[WhiteElo "2429"]
[BlackElo "2401"]
[Result "0-1"]
[Round "03"]
[TimeControl "180+1"]
[Date "2022.07.26"]
[WhiteClock "0:00:08"]
[BlackClock "0:00:15"]

1. d4 {[%clk 0:03:00]}  d5 {[%clk 0:03:00]} 2. c4 {[%clk 0:02:59]}  e6 {[%clk 0:03:00]} 3. Nc3 {[%clk 0:02:59]}  c5 {[%clk 0:03:00]} 4. Nf3 {[%clk 0:02:55]}  cxd4 {[%clk 0:02:59]} 5. Nxd4 {[%clk 0:02:55]}  e5 {[%clk 0:02:59]} 6. Nf3 {[%clk 0:02:56]}  d4 {[%clk 0:02:56]} 7. Nd5 {[%clk 0:02:55]}  Nc6 {[%clk 0:02:46]} 8. e3 {[%clk 0:02:55]}  Nf6 {[%clk 0:02:31]} 9. Nxf6+ {[%clk 0:02:41]}  Qxf6 {[%clk 0:02:32]} 10. Bd3 {[%clk 0:02:36]}  Bg4 {[%clk 0:02:25]} 11. O-O {[%clk 0:02:34]}  Bc5 {[%clk 0:02:19]} 12. Be4 {[%clk 0:02:27]}  O-O {[%clk 0:02:15]} 13. h3 {[%clk 0:02:28]}  Bh5 {[%clk 0:02:08]} 14. a3 {[%clk 0:02:20]}  a5 {[%clk 0:02:08]} 15. Qb3 {[%clk 0:02:08]}  Qe7 {[%clk 0:01:59]} 16. exd4 {[%clk 0:02:04]}  exd4 {[%clk 0:01:27]} 17. Re1 {[%clk 0:02:03]}  Qc7 {[%clk 0:01:21]} 18. Bg5 {[%clk 0:01:32]}  Rfe8 {[%clk 0:01:20]} 19. Bh4 {[%clk 0:01:31]}  a4 {[%clk 0:01:16]} 20. Qd3 {[%clk 0:01:24]}  Bg6 {[%clk 0:01:17]} 21. Bg3 {[%clk 0:01:22]}  Qb6 {[%clk 0:01:16]} 22. Bxg6 {[%clk 0:01:20]}  hxg6 {[%clk 0:01:17]} 23. Re2 {[%clk 0:01:16]}  Rxe2 {[%clk 0:01:09]} 24. Qxe2 {[%clk 0:01:17]}  d3 {[%clk 0:01:09]} 25. Qxd3 {[%clk 0:01:16]}  Qxb2 {[%clk 0:01:09]} 26. Rb1 {[%clk 0:01:13]}  Qxa3 {[%clk 0:01:10]} 27. Qd7 {[%clk 0:00:55]}  Na5 {[%clk 0:00:48]} 28. Bc7 {[%clk 0:00:39]}  Qa2 {[%clk 0:00:36]} 29. Rd1 {[%clk 0:00:32]}  Qxf2+ {[%clk 0:00:30]} 30. Kh1 {[%clk 0:00:32]}  Nxc4 {[%clk 0:00:30]} 31. Bf4 {[%clk 0:00:17]}  a3 {[%clk 0:00:26]} 32. Qxb7 {[%clk 0:00:11]}  Re8 {[%clk 0:00:26]} 33. Qb5 {[%clk 0:00:11]}  Qe2 {[%clk 0:00:14]} 34. Re1 {[%clk 0:00:06]}  Qxe1+ {[%clk 0:00:14]} 35. Nxe1 {[%clk 0:00:07]}  Rxe1+ {[%clk 0:00:15]} 36. Kh2 {[%clk 0:00:08]}  a2 {[%clk 0:00:15]} 0-1


[Site "https://www.chess.com"]